fUST/lending_fUST_20240405
["ID","MTS","AMOUNT","RATE_DAILY","PERIOD"]
[321577055,1712321445322,-500.0,0.00043843,5]
[321577057,1712321445331,-503.75,0.00043843,5]
[321577059,1712321445341,-514.94041582,0.00043843,5]
[321577061,1712321445352,-861.46,0.00043843,5]
[321577063,1712321445362,-500.0,0.00043843,5]
[321577065,1712321445372,-500.0,0.00043843,5]
[321577067,1712321445382,-1024.42,0.00043843,5]
[321577069,1712321445391,-1274.26,0.00043843,5]
[321577071,1712321445400,-500.0,0.00043843,5]
[321577073,1712321445409,-500.0,0.00043843,5]
[321577075,1712321445418,-500.0,0.00043843,5]
[321577077,1712321445427,-500.0,0.00043843,5]
[321577079,1712321445437,-500.0,0.00043843,5]
[321577081,1712321445446,-500.0,0.00043843,5]
[321577084,1712321445455,-833.81,0.00043843,5]
[321577087,1712321445465,-500.0,0.00043843,5]
[321577089,1712321445473,-1795.54,0.00043843,5]
[321577101,1712321445558,-500.0,0.00043843,5]
[321577103,1712321445567,-500.0,0.00043843,5]
[321577105,1712321445576,-500.0,0.00043843,5]
[321577107,1712321445585,-500.0,0.00043844,5]
[321577109,1712321445594,-500.0,0.00043844,2]
[321577112,1712321445605,-500.0,0.00043844,5]
[321577114,1712321445614,-1289.96858,0.00043844,7]
[321577116,1712321445623,-1289.96858,0.00043844,7]
[321577118,1712321445632,-1289.96858,0.00043844,7]
[321577120,1712321445642,-1289.96858,0.00043844,7]
[321577122,1712321445651,-500.0,0.00043844,5]
[321577124,1712321445660,-500.0,0.00043844,5]
[321577126,1712321445669,-500.0,0.00043844,5]
[321577128,1712321445678,-500.0,0.00043897,2]
[321577130,1712321445687,-500.0,0.00043952,2]
[321577132,1712321445696,-1338.0,0.00044,2]
[321577134,1712321445705,-345.39680604,0.00044007,2]
[321577136,1712321445715,-1487.24053539,0.0004411,4]
[321577138,1712321445724,-500.0,0.00044115,5]
[321577140,1712321445734,-500.0,0.00044115,5]
[321577142,1712321445743,-500.0,0.00044115,5]
[321577144,1712321445752,-500.0,0.00044115,5]
[321577146,1712321445762,-500.0,0.00044115,5]
[321577148,1712321445771,-500.0,0.00044115,5]
[321577150,1712321445780,-500.0,0.00044115,5]
[321577152,1712321445788,-1214.58,0.00044115,5]
[321577154,1712321445797,-1410.94,0.00044115,5]
[321577156,1712321445806,-2678.68,0.00044115,5]
[321577158,1712321445816,-241.11303058,0.00044115,5]
[321577160,1712321445825,-7420.43,0.00044115,5]
[321577162,1712321445839,-2630.32,0.00044115,5]
[321577164,1712321445849,-1172.25,0.00044115,5]
[321577166,1712321445861,-500.0,0.00044115,5]
[321577168,1712321445870,-510.15097688,0.00044115,5]
[321577170,1712321445881,-2085.65,0.00044115,5]
[321577172,1712321445890,-500.0,0.00044115,5]
[321577174,1712321445899,-500.0,0.00044115,5]
[321577176,1712321445910,-3511.06770686,0.00044116,4]
[321577178,1712321445919,-155.62754232,0.00044116,4]
[321577180,1712321445929,-210.3771735,0.00044116,2]
[321577182,1712321445938,-476.92573413,0.00044116,4]
[321577184,1712321445947,-500.0,0.00044116,5]
[321577186,1712321445956,-260.07138253,0.00044116,5]
[321577188,1712321445966,-500.0,0.00044116,5]
[321577190,1712321445976,-515.21425823,0.00044116,5]
[321577192,1712321445988,-500.0,0.00044116,5]
[321577194,1712321445999,-932.27,0.00044116,5]
[321577196,1712321446009,-3190.92,0.00044116,5]
[321577198,1712321446019,-500.0,0.00044116,5]
[321577200,1712321446028,-500.0,0.00044116,5]
[321577202,1712321446037,-1289.96858,0.00044116,7]
[321577204,1712321446046,-1289.96858,0.00044116,7]
[321577206,1712321446055,-1289.96858,0.00044116,7]
[321577207,1712321446065,-5693.2,0.00044116,5]
[321577209,1712321446075,-1006.74,0.00044116,5]
[321577211,1712321446084,-1289.96858,0.00044116,7]
[321577213,1712321446094,-1289.96858,0.00044116,7]
[321577215,1712321446108,-1289.968588,0.00044116,7]
[321577217,1712321446117,-500.0,0.00044116,5]
[321577219,1712321446126,-293.34539338,0.00044116,5]
[321577221,1712321446136,-507.85599407,0.00044116,5]
[321577224,1712321446147,-8333.33,0.00044116,5]
[321577225,1712321446157,-603.41,0.00044116,5]
[321577228,1712321446169,-500.0,0.00044116,5]
[321577230,1712321446179,-799.23,0.00044116,5]
[321577232,1712321446189,-4292.82,0.00044116,5]
[321577234,1712321446199,-500.0,0.00044116,5]
[321577236,1712321446209,-7511.73,0.00044116,5]
[321577238,1712321446219,-500.0,0.00044116,5]
[321577240,1712321446229,-500.0,0.00044116,5]
[321577242,1712321446239,-500.0,0.00044116,5]
[321577244,1712321446248,-21681.98682882,0.00044116,5]
[321577256,1712321446368,-14046.76317118,0.00044116,5]
[321577258,1712321446385,-500.0,0.00044116,5]
[321577260,1712321446398,-500.0,0.00044116,5]
[321577263,1712321446413,-500.0,0.00044116,5]
[321577265,1712321446430,-7820.76,0.00044116,5]
[321577268,1712321446446,-2382.82,0.00044116,5]
[321577270,1712321446464,-500.0,0.00044116,5]
[321577273,1712321446483,-500.0,0.00044116,5]
[321577275,1712321446499,-554.90756396,0.00044116,5]
[321577303,1712321446772,-313.55066718,0.00041743,2]
[321577305,1712321446788,-449.38825683,0.00043841,120]
[321577308,1712321446803,-364.35123334,0.00043841,120]
[321577310,1712321446818,-500.0,0.00043842,5]
[321577312,1712321446832,-0.20243604,0.00044116,5]
[321577314,1712321446845,-523.41913237,0.00044116,5]
[321577317,1712321446864,-1502.74,0.00044116,5]
[321577319,1712321446875,-1100.05260597,0.00044116,5]
[321579217,1712321559365,5012.72020684,0.00035,2]
[321579220,1712321678791,574.51357197,0.0003,2]
[321579221,1712321680380,1370.47006673,0.0003,7]
[321579222,1712321680796,1956.65975293,0.00031,2]
[321579224,1712321748809,1000.0,0.00035,2]
[321579230,1712322350500,259.03377812,0.000329,2]
[321579244,1712322632663,-259.03377812,0.000379,2]
[321579245,1712322632673,-1750.0,0.000397,4]
[321579246,1712322632682,-400.0,0.00039701,3]
[321579247,1712322632691,-400.0,0.00039701,5]
[321579248,1712322632700,-24900.0,0.00039702,2]
[321579249,1712322632710,-179.995171,0.00039804,120]
[321579250,1712322632720,-168.47129,0.0004,2]
[321579251,1712322632729,-178.09404392,0.00040028,2]
[321579252,1712322632739,-1422.06243896,0.00040128,4]
[321579253,1712322632749,-5398.66107375,0.0004013,2]
[321579254,1712322632759,-1306.3721208,0.00040614,2]
[321579255,1712322632768,-573.92467343,0.00041652,2]
[321579256,1712322632777,-500.0,0.00042,2]
[321579257,1712322632786,-560.0,0.00042361,5]
[321579258,1712322632795,-500.0,0.000425,2]
[321579259,1712322632805,-259.03377812,0.000429,2]
[321579261,1712322632815,-500.0,0.00043,2]
[321579263,1712322632825,-202.5506203,0.00043295,2]
[321579264,1712322632834,-202.5506203,0.00043342,2]
[321579265,1712322632843,-150.0,0.00043389,60]
[321579266,1712322632852,-510.4105683,0.000435,2]
[321579267,1712322632861,-560.0,0.00043672,3]
[321579268,1712322632871,-1500.0,0.00043741,2]
[321579269,1712322632879,-160.10510693,0.00043763,3]
[321579270,1712322632890,-500.0,0.00043835,5]
[321579271,1712322632899,-500.0,0.00043835,5]
[321579272,1712322632910,-500.0,0.00043835,5]
[321579273,1712322632919,-1113.36,0.00043835,5]
[321579274,1712322632929,-500.0,0.00043835,5]
[321579275,1712322632938,-1293.36,0.00043835,5]
[321579276,1712322632947,-2455.45,0.00043835,5]
[321579277,1712322632956,-6802.06,0.00043835,5]
[321579278,1712322632965,-1074.56,0.00043835,5]
[321579279,1712322632974,-500.0,0.00043835,5]
[321579280,1712322632983,-156.15052858,0.00043838,120]
[321579281,1712322632992,-1911.85,0.00043838,5]
[321579282,1712322633002,-500.0,0.00043839,5]
[321579283,1712322633012,-504.43449374,0.00043839,5]
[321579284,1712322633021,-500.0,0.00043839,5]
[321579285,1712322633030,-1000.0,0.00043839,5]
[321579286,1712322633039,-500.0,0.00043839,5]
[321579287,1712322633048,-500.0,0.00043839,5]
[321579288,1712322633057,-854.58,0.00043839,5]
[321579289,1712322633066,-500.0,0.00043839,5]
[321579290,1712322633076,-2411.13,0.00043839,5]
[321579291,1712322633085,-210.30244381,0.00043839,5]
[321579292,1712322633094,-500.0,0.00043839,5]
[321579293,1712322633103,-500.0,0.00043839,5]
[321579294,1712322633112,-5218.77,0.00043839,5]
[321579295,1712322633121,-500.0,0.00043839,5]
[321579296,1712322633130,-553.13,0.00043839,5]
[321579297,1712322633140,-732.63,0.00043839,5]
[321579298,1712322633256,-500.0,0.00043839,5]
[321579299,1712322633266,-500.0,0.00043839,5]
[321579300,1712322633275,-500.0,0.00043839,5]
[321579301,1712322633285,-500.0,0.00043839,5]
[321579302,1712322633294,-500.0,0.00043839,5]
[321579303,1712322633303,-500.0,0.00043839,5]
[321579304,1712322633313,-500.0,0.00043839,5]
[321579305,1712322633321,-32325.20589794,0.00043839,5]
[321579306,1712322633341,-329.67506695,0.00043839,5]
[321579307,1712322633352,-96.46903511,0.00043839,5]
[321579308,1712322633361,-500.0,0.00043839,5]
[321579309,1712322633370,-489.63052185,0.00043839,5]
[321579414,1712322638402,-3505.09008683,0.00043835,5]
[321579420,1712322638428,-309.78964176,0.00043835,5]
[321579532,1712322640407,-1186.44027141,0.00043835,5]
[321579533,1712322640418,-19.21947815,0.00043839,5]
[321579534,1712322640428,-500.0,0.00043839,5]
[321579535,1712322640438,-1377.51,0.00043839,5]
[321579536,1712322640447,-1458.98202937,0.00043839,5]
[321579537,1712322640459,-5027.52501628,0.00043839,5]
[321579550,1712322643473,-2310.66,0.00043835,5]
[321579551,1712322643483,-682.52295435,0.00043839,5]
[321579552,1712322643492,-500.0,0.00043839,5]
[321579553,1712322643501,-500.0,0.00043839,5]
[321579554,1712322643511,-2647.53,0.00043839,5]
[321579555,1712322643520,-500.0,0.00043839,5]
[321579556,1712322643529,-500.0,0.00043839,5]
[321579558,1712322643538,-500.0,0.00043839,5]
[321579559,1712322643547,-2184.25,0.00043839,5]
[321579560,1712322643556,-500.0,0.00043839,2]
[321579561,1712322643565,-406.97628851,0.00043839,5]
[321579562,1712322643575,-500.0,0.00043839,5]
[321579563,1712322643584,-500.0,0.00043839,5]
[321579564,1712322643593,-500.0,0.00043839,5]
[321579565,1712322643602,-500.0,0.00043839,5]
[321579566,1712322643612,-341.21703623,0.00043839,5]
[321579567,1712322643621,-500.0,0.00043839,5]
[321579568,1712322643632,-500.0,0.00043839,5]
[321579569,1712322643642,-500.0,0.00043839,5]
[321579570,1712322643652,-507.09565776,0.00043839,5]
[321579571,1712322643661,-764.58,0.00043839,5]
[321579572,1712322643673,-4120.55,0.00043839,5]
[321579573,1712322643682,-500.0,0.00043839,5]
[321579574,1712322643691,-595.94940798,0.00043839,5]
[321579575,1712322643701,-687.13,0.00043839,5]
[321579576,1712322643710,-500.0,0.0004384,5]
[321579577,1712322643719,-3021.93,0.0004384,5]
[321579578,1712322643729,-6885.75,0.0004384,5]
[321579579,1712322643738,-922.84,0.0004384,5]
[321579580,1712322643748,-7638.88,0.0004384,5]
[321579581,1712322643757,-500.0,0.0004384,5]
[321579582,1712322643766,-20343.62,0.0004384,5]
[321579583,1712322643775,-3935.09,0.0004384,5]
[321579584,1712322643785,-1720.73,0.0004384,5]
[321579585,1712322643794,-500.0,0.0004384,5]
[321579586,1712322643803,-27227.39882032,0.00043841,5]
[321579587,1712322643813,-1642.86430572,0.00043841,120]
[321579588,1712322643822,-500.0,0.00043841,5]
[321579589,1712322643831,-500.0,0.00043841,5]
[321579590,1712322643841,-500.0,0.00043841,5]
[321579591,1712322643850,-500.0,0.00043841,5]
[321579592,1712322643861,-500.0,0.00043841,5]
[321579593,1712322643870,-500.0,0.00043841,5]
[321579594,1712322643879,-500.0,0.00043841,5]
[321579595,1712322643888,-500.0,0.00043841,5]
[321579596,1712322643897,-640.56001335,0.00043841,5]
[321579597,1712322643908,-500.0,0.00043841,5]
[321579598,1712322643921,-505.29380755,0.00043841,5]
[321579599,1712322643930,-500.0,0.00043841,5]
[321579600,1712322643939,-507.28520648,0.00043841,5]
[321579601,1712322643949,-500.0,0.00043841,5]
[321579602,1712322643958,-500.0,0.00043841,5]
[321579603,1712322643968,-507.68852429,0.00043841,5]
[321579604,1712322643977,-2000.045456,0.00043841,7]
[321579605,1712322643987,-2000.045456,0.00043841,7]
[321579606,1712322643996,-500.0,0.00043841,5]
[321579607,1712322644006,-334.08440446,0.00043841,5]
[321579608,1712322644015,-466.95444582,0.00043841,5]
[321579609,1712322644025,-500.0,0.00043841,5]
[321579610,1712322644034,-500.0,0.00043841,5]
[321579611,1712322644043,-500.0,0.00043841,5]
[321579612,1712322644052,-500.0,0.00043841,5]
[321579613,1712322644062,-500.0,0.00043841,5]
[321579614,1712322644071,-1576.86,0.00043841,5]
[321579615,1712322644080,-500.0,0.00043841,5]
[321579616,1712322644089,-500.0,0.00043841,5]
[321579617,1712322644099,-500.0,0.00043841,5]
[321579618,1712322644108,-218.50672808,0.00043841,5]
[321579619,1712322644117,-500.0,0.00043841,5]
[321579620,1712322644126,-500.0,0.00043841,5]
[321579621,1712322644136,-500.0,0.00043841,5]
[321579622,1712322644145,-3374.47,0.00043841,5]
[321579623,1712322644154,-151.0,0.00043841,7]
[321579624,1712322644166,-151.0,0.00043841,7]
[321579625,1712322644176,-500.0,0.00043841,5]
[321579626,1712322644187,-3267.64,0.00043841,7]
[321579627,1712322644196,-981.74,0.00043841,5]
[321579628,1712322644205,-500.0,0.00043841,5]
[321579629,1712322644215,-825.57,0.00043841,5]
[321579630,1712322644226,-500.0,0.00043841,5]
[321579631,1712322644235,-1221.17,0.00043841,5]
[321579632,1712322644245,-414.79245905,0.00043841,5]
[321579633,1712322644256,-489.14506318,0.00043841,5]
[321579634,1712322644266,-500.0,0.00043841,5]
[321579635,1712322644275,-500.0,0.00043841,5]
[321579636,1712322644284,-500.0,0.00043841,5]
[321579637,1712322644294,-500.0,0.00043841,5]
[321579638,1712322644303,-500.0,0.00043841,5]
[321579639,1712322644313,-799.07,0.00043841,5]
[321579640,1712322644322,-500.0,0.00043841,5]
[321579641,1712322644331,-500.0,0.00043841,5]
[321579642,1712322644341,-500.81267653,0.00043841,5]
[321579643,1712322644351,-2000.045456,0.00043842,7]
[321579644,1712322644360,-2000.045456,0.00043842,7]
[321579645,1712322644370,-536.01802538,0.00043842,2]
[321579646,1712322644380,-500.0,0.00043842,5]
[321579647,1712322644389,-500.0,0.00043842,5]
[321579648,1712322644398,-151.0,0.00043842,7]
[321579649,1712322644409,-151.0,0.00043842,7]
[321579650,1712322644421,-500.0,0.00043842,5]
[321579651,1712322644430,-500.0,0.00043842,5]
[321579652,1712322644439,-500.0,0.00044109,5]
[321579653,1712322644449,-500.0,0.00044109,5]
[321579654,1712322644458,-500.0,0.00044109,5]
[321579655,1712322644467,-1113.36,0.00044109,5]
[321579656,1712322644477,-165.72975591,0.00044109,5]
[321579657,1712322644486,-1293.36,0.00044109,5]
[321579658,1712322644495,-2455.45,0.00044109,5]
[321579659,1712322644505,-6802.06,0.00044109,5]
[321579660,1712322644514,-1074.56,0.00044109,5]
[321579661,1712322644523,-286.52862305,0.00044109,5]
[321579662,1712322644533,-5001.32,0.00044109,5]
[321579663,1712322644542,-2310.66,0.00044109,5]
[321579664,1712322644551,-1911.85,0.00044112,5]
[321579665,1712322644560,-500.0,0.00044113,5]
[321579666,1712322644570,-208.07396459,0.00044113,5]
[321579667,1712322644579,-1000.0,0.00044113,5]
[321579668,1712322644589,-500.0,0.00044113,5]
[321579669,1712322644598,-854.58,0.00044113,5]
[321579670,1712322644607,-535.99597931,0.00044113,5]
[321579671,1712322644617,-151.0,0.00044113,7]
[321579672,1712322644626,-163.576156,0.00044113,7]
[321579673,1712322644732,-152.72997428,0.00044113,5]
[321579674,1712322644745,-553.13,0.00044113,5]
[321579675,1712322644755,-732.63,0.00044113,5]
[321579676,1712322644764,-500.0,0.00044113,5]
[321579677,1712322644773,-500.0,0.00044113,5]
[321579678,1712322644783,-500.0,0.00044113,5]
[321579679,1712322644792,-500.0,0.00044113,5]
[321579680,1712322644802,-500.0,0.00044113,5]
[321579681,1712322644812,-500.0,0.00044113,5]
[321579682,1712322644822,-500.0,0.00044113,5]
[321579683,1712322644831,-18636.05400981,0.00044113,5]
[321579684,1712322644844,-950.79388932,0.00044113,5]
[321579685,1712322644856,-1214.63726903,0.00044113,5]
[321579729,1712322656353,9669.59731443,0.00035,2]
[321579739,1712323525933,230.21,0.00027397,120]
[321579768,1712323832445,-1750.0,0.00032886,4]
[321579769,1712323832455,-729.25295602,0.00032887,2]
[321579770,1712323832463,-154.98450155,0.00032888,4]
[321579771,1712323832472,-150.0,0.000329,2]
[321579773,1712323832482,-282.88836194,0.00033922,2]
[321579936,1712323838413,-117.11163806,0.00033922,2]
[321579938,1712323838422,-400.0,0.00033922,2]
[321579940,1712323838432,-2472.80350194,0.00033923,2]
[321580223,1712323841189,-22427.19649806,0.00033923,2]
[321580226,1712323841198,-161.89557112,0.00034897,2]
[321580228,1712323841208,-5403.6620597,0.00034997,4]
[321580230,1712323841217,-15212.77690499,0.00035,2]
[321580474,1712323843715,-3069.91624691,0.00035,2]
[321580476,1712323843727,-781.03087013,0.00035,2]
[321580478,1712323843739,-11768.0439618,0.00035,2]
[321580480,1712323843748,-155.28232525,0.00035,4]
[321580482,1712323843759,-560.0,0.00037314,2]
[321580484,1712323843768,-161.8955711,0.00039316,2]
[321580486,1712323843778,-201.48059882,0.0004,31]
[321580488,1712323843788,-170.855526,0.00040364,2]
[321580490,1712323843798,-280.0,0.00041045,3]
[321580493,1712323843808,-166.666666,0.00041096,2]
[321580495,1712323843818,-156.472743,0.00041998,4]
[321580497,1712323843827,-155.02170304,0.00041999,4]
[321580499,1712323843837,-7575.64090499,0.00042,2]
[321584244,1712325032627,-329.16322832,0.00037667,4]
[321584245,1712325032642,-1841.03186564,0.00037667,4]
[321584247,1712325032652,-729.25295602,0.00037668,2]
[321584248,1712325032661,-922.20328275,0.00037668,4]
[321584249,1712325032671,-440.12703912,0.00037669,4]
[321584250,1712325032681,-253.15719799,0.0003767,2]
[321584251,1712325032690,-1750.0,0.00037671,4]
[321584252,1712325032700,-1678.44138929,0.00037688,2]
[321584253,1712325032714,-17629.92689741,0.00037688,2]
[321584254,1712325032723,-210.36588987,0.000381,2]
[321584255,1712325032732,-210.36588986,0.00038142,2]
[321584256,1712325032742,-1493.58837885,0.00038242,4]
[321584257,1712325032751,-156.26428068,0.00038251,2]
[321584258,1712325032761,-3584.18010802,0.00038351,4]
[321584259,1712325032771,-286.69251006,0.000398,2]
[321584260,1712325032781,-16303.35642523,0.000399,2]
[321584261,1712325032790,-500.0,0.00039999,2]
[321584262,1712325032799,-2226.97393942,0.0004,120]
[321584263,1712325032914,-13.5757797,0.0004,120]
[321584264,1712325032925,-9847.63062043,0.0004,120]
[321584265,1712325032934,-500.0,0.00040054,2]
[321584266,1712325032945,-500.0,0.00040109,2]
[321584267,1712325032954,-500.0,0.00040164,2]
[321584268,1712325032963,-345.39680604,0.00040218,2]
[321584269,1712325032973,-286.69251002,0.00040464,2]
[321584270,1712325032983,-286.69251002,0.00041128,2]
[321584271,1712325032992,-967.75180071,0.00041134,15]
[321584272,1712325033002,-379.754361,0.00041158,4]
[321584273,1712325033011,-201.4787758,0.00041699,2]
[321584274,1712325033021,-409.2644481,0.00041699,2]
[321584275,1712325033030,-286.69251002,0.00041792,2]
[321584276,1712325033040,-537.11040707,0.00041998,4]
[321584277,1712325033049,-155.4241934,0.00041998,4]
[321584278,1712325033060,-2363.16911365,0.00041998,4]
[321584279,1712325033070,-1185.25866491,0.00041998,4]
[321584280,1712325033079,-310.52271559,0.00041998,7]
[321584281,1712325033088,-360.31706093,0.00041998,4]
[321584282,1712325033097,-2928.53034057,0.00041998,4]
[321584283,1712325033106,-1271.96912515,0.00041998,4]
[321584330,1712325038655,-2028.53087485,0.00041998,4]
[321584332,1712325038665,-7.30666463,0.00041998,4]
[321584476,1712325044116,-2847.13200151,0.00041998,4]
[321584477,1712325044125,-1381.12762273,0.00041998,4]
[321584478,1712325044134,-155.57276628,0.00041999,4]
[321584479,1712325044146,-2933.16760872,0.00041999,4]
[321584480,1712325044157,-2300.48627068,0.00041999,4]
[321584481,1712325044166,-19161.27372932,0.00042,2]
[321584482,1712325044178,-29034.97131468,0.00042,2]
[321584483,1712325044203,-1312.51406335,0.00042,2]
[321584520,1712325046922,-493.47446382,0.00041998,2]
[321584521,1712325046932,-1057.58734782,0.00041998,4]
[321584522,1712325046942,-5541.73473314,0.00042,2]
[321584523,1712325046953,-153.0,0.00042384,2]
[321584524,1712325046964,-153.0,0.00042384,2]
[321584525,1712325046974,-305.8238478,0.00042384,2]
[321584526,1712325046983,-153.4991794,0.00042384,2]
[321584527,1712325046993,-153.0,0.00042384,2]
[321584528,1712325047003,-153.0,0.00042384,2]
[321584529,1712325047013,-153.0,0.00042384,2]
[321584530,1712325047022,-153.0,0.00042384,2]
[321584531,1712325047032,-153.0,0.00042384,2]
[321584532,1712325047042,-153.0,0.00042384,2]
[321584533,1712325047051,-153.0,0.00042384,2]
[321584534,1712325047061,-153.0,0.00042384,2]
[321584535,1712325047070,-153.0,0.00042384,2]
[321584536,1712325047080,-153.0,0.00042384,2]
[321584537,1712325047090,-286.69251002,0.00042456,2]
[321584538,1712325047100,-153.0,0.00042474,2]
[321584539,1712325047110,-202.5506203,0.00042556,2]
[321584540,1712325047119,-317.5883651,0.00043,120]
[321584541,1712325047258,-153.0,0.00043205,2]
[321584542,1712325047268,-153.0,0.00043205,2]
[321584543,1712325047277,-153.0,0.00043205,2]
[321584544,1712325047287,-306.0,0.00043205,2]
[321584545,1712325047297,-202.5506203,0.00043361,2]
[321584546,1712325047307,-202.5506203,0.00043361,2]
[321584547,1712325047317,-202.5506203,0.00043361,2]
[321584548,1712325047327,-1000.0,0.000435,2]
[321584549,1712325047337,-161.27184453,0.00043674,3]
[321584550,1712325047346,-1500.0,0.00043733,2]
[321584551,1712325047357,-561.9301879,0.00043833,4]
[321584552,1712325047367,-155.62754232,0.00043833,4]
[321584553,1712325047377,-1487.24053539,0.00043833,4]
[321584554,1712325047386,-248.95478592,0.00043833,4]
[321584555,1712325047397,-155.0,0.00043834,4]
[321584556,1712325047406,-2845.31390782,0.00043834,4]
[321584557,1712325047415,-748.33932615,0.00043835,5]
[321584607,1712326232573,-440.12703912,0.00039889,4]
[321584608,1712326232583,-1381.12762273,0.0003989,4]
[321584610,1712326232593,-150.0,0.000399,2]
[321584612,1712326232603,-183.467016,0.00041096,2]
[321584614,1712326232612,-179.907738,0.00041273,120]
[321584615,1712326232622,-700.5479373,0.00041298,2]
[321584616,1712326232636,-347.42799804,0.00041643,2]
[321584693,1712326237949,-1015.40251946,0.00041643,2]
[321584848,1712326240073,-981.94982041,0.00041643,2]
[321584849,1712326240083,-2494.1590697,0.00041811,2]
[321584850,1712326240092,-1628.61939049,0.00041906,10]
[321584851,1712326240101,-500.0,0.00041956,4]
[321584852,1712326240111,-550.0,0.00041997,3]
[321584853,1712326240120,-2581.5797154,0.00041998,4]
[321584854,1712326240129,-289.48304993,0.00041999,2]
[321584855,1712326240141,-476.65629224,0.00041999,4]
[321584856,1712326240150,-7170.32030699,0.00042,120]
[321584869,1712326243065,-2348.85948291,0.00042,120]
[321584881,1712326292700,250.0,0.00034619,30]
[321584884,1712326486874,616.02,0.00034619,30]
[321584966,1712327432638,-154.98450155,0.0003251,4]
[321584968,1712327432649,-407.76045621,0.00032511,4]
[321584970,1712327432659,-512.363075,0.00032516,4]
[321584972,1712327432668,-301.79014541,0.00032519,2]
[321584974,1712327432677,-400.0,0.00036998,2]
[321584976,1712327432688,-19050.70956808,0.00036999,4]
[321584978,1712327432697,-3133.98711251,0.00037,4]
[321584980,1712327432709,-23856.18131322,0.00037,4]
[321584982,1712327432718,-301.79014541,0.00037519,2]
[321584984,1712327432728,-1431.0,0.0004,2]
[321584986,1712327432737,-346.0,0.00040698,3]
[321584988,1712327432747,-1059.80341603,0.00041,4]
[321584990,1712327432756,-914.86496869,0.00042,120]
[321584992,1712327432765,-301.216898,0.00042065,2]
[321584994,1712327432775,-3832.6651254,0.00042082,2]
[321584996,1712327432784,-389.0744216,0.00042141,2]
[321584998,1712327432793,-153.0,0.00042192,2]
[321585000,1712327432802,-153.0,0.00042278,2]
[321585001,1712327432811,-153.0,0.000424,2]
[321585003,1712327432820,-153.0,0.000424,2]
[321585004,1712327432830,-153.0,0.000424,2]
[321585006,1712327432839,-153.0,0.000424,2]
[321585007,1712327432849,-153.0,0.000424,2]
[321585009,1712327432858,-153.0,0.000424,2]
[321585011,1712327432868,-153.0,0.000424,2]
[321585012,1712327432878,-153.0,0.000424,2]
[321585014,1712327432887,-153.0,0.000424,2]
[321585016,1712327432897,-153.0,0.00042527,2]
[321585017,1712327432906,-153.7652439,0.00042527,2]
[321585018,1712327432916,-153.0,0.00042527,2]
[321585019,1712327432925,-153.0,0.00042527,2]
[321585020,1712327432935,-153.0,0.00042527,2]
[321585021,1712327432944,-153.0,0.00042527,2]
[321585022,1712327432953,-153.756453,0.00042527,2]
[321585023,1712327432964,-202.5506203,0.00042527,2]
[321585024,1712327432973,-153.0,0.00042527,2]
[321585025,1712327432983,-153.0,0.00042527,2]
[321585026,1712327432993,-202.5506203,0.00042527,2]
[321585027,1712327433003,-153.0,0.00042527,2]
[321585028,1712327433014,-202.5506203,0.00042527,2]
[321585029,1712327433024,-153.0,0.00042527,2]
[321585030,1712327433035,-202.5506203,0.00042527,2]
[321585031,1712327433045,-153.0,0.00042575,2]
[321585032,1712327433058,-153.0,0.00042575,2]
[321585033,1712327433069,-153.0,0.00042575,2]
[321585034,1712327433082,-153.0,0.00042575,2]
[321585035,1712327433094,-153.0,0.00042575,2]